[Event "2nd Bieszczady Chess-ch A 2022"]
[Site "Bystre"]
[Date "2022.07.19"]
[Round "3.5"]
[White "Kasperek, Ryszard"]
[Black "Tymrakiewicz, Rafal"]
[Result "0-1"]
[ECO "B14"]
[WhiteElo "2058"]
[BlackElo "2205"]
[Annotator "TA"]
[PlyCount "45"]
[EventDate "2022.07.17"]
[EventCountry "POL"]
[SourceTitle "playchess.com"]
[Source "ChessBase"]
[SourceQuality "1"]
[TimeControl "5400+30"]

{[%evp 19,45,0,0,0,0,0,18,-8,22,0,0,0,16,-14,25,-3,10,-38,-32,-84,-37,-427,-422,-595,-614,-607,-604,-931]} 1. e4 {[%emt 0:00:01]} c6 {[%emt 0:01:10]} 2. d4 {[%emt 0:00:13]} d5 {[%emt 0:00:53]} 3. exd5 {[%emt 0:00:33]} cxd5 {[%emt 0:00:07]} 4. c4 {[%emt 0:00:06]} Nf6 {[%emt 0:00:07]} 5. Nc3 {[%emt 0:00:11]} g6 {[%emt 0:00:27]} 6. cxd5 {[%emt 0:01:15]} Bg7 {[%emt 0:00:16]} 7. Bc4 {[%emt 0:00:11]} O-O {[%emt 0:01:05]} 8. Nge2 {[%emt 0:00:11]} Na6 {[%emt 0:08:55]} 9. O-O {[%emt 0:33:53][%cal Bh1f1,Bf1e1,Be1e2][%mdl 32]} Nc7 {[%emt 0:06:44]} 10. Nf4 {[%emt 0:00:52]} b6 {[%emt 0:06:32]} 11. a4 {[%emt 0:10:01] B14: Caro-Kann: Panov-Botvinnik Attack with 5...e6 and 5...g6.} Bb7 {[%emt 0:04:12]} 12. Qb3 {[%emt 0:00:41]} Rb8 {[%emt 0:04:49]} 13. Re1 {[%emt 0:08:43] [#] The position is equal.} Ba8 $146 {[%emt 0:05:59]} ({Predecessor:} 13... a6 14. Bd2 b5 15. axb5 axb5 16. Bf1 Nfxd5 17. Ncxd5 Bxd5 18. Nxd5 Qxd5 19. Qxd5 Nxd5 {0-1 (30) Borge,N (2383)-Svane,R (2506) Denmark 2014}) 14. Bd2 {[%emt 0:22:36]} a6 {[%emt 0:05:08]} 15. Qb4 {[%emt 0:06:49]} Re8 {[%emt 0:04:57][%cal Ra8d5]} 16. h3 {[%emt 0:04:53]} Qd7 {[%emt 0:04:08][%cal Rf6d5]} 17. Re2 {[%emt 0:04:10]} Bf8 {[%emt 0:05:55]} 18. d6 {[%emt 0:02:53]} (18. Re5 $11 {was preferrable.}) 18... e6 $15 {[%emt 0:09:05]} 19. Qb3 {[%emt 0:01:00]} (19. Ree1 $15) 19... Bxd6 {[%emt 0:06:19]} (19... Qxd6 $17 20. Ree1 b5 21. axb5 axb5) 20. Qd1 $2 {[%emt 0:00:35][%mdl 8192] [#] This costs White the game.} ({White has to play} 20. Ree1 $1 $15) 20... Qc6 $19 {[%emt 0:02:30] Black is clearly winning.} 21. d5 {[%emt 0:00:12]} (21. Rc1 $142 Bxf4 22. f3) 21... Qxc4 {[%emt 0:01:03]} 22. Rc1 {[%emt 0:00:58]} Qd4 {[%emt 0:07:02]} 23. Qe1 {Weighted Error Value: White=0.86/Black=0.13 (very precise)} 0-1

[Event "2nd Bieszczady Chess-ch A 2022"]
[Site "Bystre"]
[Date "2022.07.19"]
[Round "3.6"]
[White "Karvatskyi, Oleksii"]
[Black "Bugajski, Robert"]
[Result "1-0"]
[ECO "B20"]
[WhiteElo "1804"]
[BlackElo "2075"]
[Annotator "TA"]
[PlyCount "49"]
[EventDate "2022.07.17"]
[EventCountry "POL"]
[SourceTitle "playchess.com"]
[Source "ChessBase"]
[SourceQuality "1"]
[TimeControl "5400+30"]

{[%evp 9,48,14,16,1,24,16,18,22,16,8,9,0,9,0,61,42,72,28,143,25,163,156,224,202,268,237,1809,1795,1781,1791,1678,1652,1706,1729,29996,29997,29997,29998,29998,29999,29999]} 1. e4 {[%emt 0:00:02]} c5 {[%emt 0:00:15]} 2. b3 {[%emt 0:00:04]} Nc6 {[%emt 0:01:00]} 3. Bb2 {[%emt 0:00:34]} d6 {[%emt 0:02:08]} 4. Bb5 {[%emt 0:00:26]} Qb6 {[%emt 0:02:21]} 5. Nc3 {[%emt 0:01:07]} e6 {[%emt 0:00:46]} 6. f4 {[%emt 0:00:36] B20: Sicilian: Unusual White 2nd moves.} Bd7 {[%emt 0:00:40]} 7. Nf3 {[%emt 0:00:09]} Nf6 {[%emt 0:01:11]} 8. Qe2 {[%emt 0:01:13] The position is equal.} Be7 {[%emt 0:04:03] [#]} 9. O-O-O $146 {[%emt 0:00:25]} ({Predecessor:} 9. e5 dxe5 10. fxe5 Nd5 11. Nxd5 exd5 12. e6 fxe6 13. Bxc6 bxc6 14. Bxg7 Rg8 15. Be5 {1-0 (53) Kivisto,M (2250)-Izquierdo,D (2295) Mendoza 1985}) 9... O-O {[%emt 0:16:26] And now ...Nd4 would win.} 10. Bxc6 {[%emt 0:00:38]} Bxc6 {[%emt 0:01:45]} 11. d4 {[%emt 0:00:07]} cxd4 {[%emt 0:02:21]} (11... d5 $11) 12. Nxd4 $14 {[%emt 0:00:39]} Rfd8 {[%emt 0:03:03]} 13. g4 {[%emt 0:00:28] White is more active.} Rac8 {[%emt 0:08:56]} (13... d5 $1 $11 {remains equal.}) 14. h4 {[%emt 0:00:36]} ({Better is} 14. g5 $16) 14... Nd7 {[%emt 0:15:35] A mistake that costs the game.} (14... d5 $1 $11) 15. g5 $18 {[%emt 0:00:50]} Bf8 {[%emt 0:00:48]} (15... Nc5 $16 16. h5 Qc7) 16. g6 {[%emt 0:00:58]} hxg6 {[%emt 0:09:09]} 17. h5 {[%emt 0:00:08] aiming for hxg6.} e5 $2 {[%emt 0:01:41] [#]} (17... g5 18. fxg5 Ne5) 18. hxg6 $1 {[%emt 0:00:41][%cal Oh1h8]} Nf6 {[%emt 0:08:33] [#]} 19. f5 $1 {[%emt 0:02:11][%cal Oe2h2] Threatening mate with Qh2!} fxg6 {[%emt 0:01:05] [#]} 20. fxg6 $1 {[%emt 0:00:04][%cal Oe2h2] White threatens Qh2! and mate.} Be8 {[%emt 0:01:24]} (20... Qxd4 21. Rxd4) 21. Nd5 {[%emt 0:00:11] Rh8+ would kill now.} Qa6 {[%emt 0:05:42] [#]} 22. Rh8+ $3 {[%emt 0:00:21][%mdl 512] White mates.} Kxh8 {[%emt 0:00:06]} 23. Qh2+ {[%emt 0:00:01]} Kg8 {[%emt 0:00:48]} 24. Nxf6+ {[%emt 0:00:02][%mdl 64] Remove Defender} gxf6 {[%emt 0:00:10]} 25. Qh7# {[%emt 0:00:02] Weighted Error Value: White=0.19 (very precise) /Black=0.83} 1-0

[Event "2nd Bieszczady Chess-ch A 2022"]
[Site "Bystre"]
[Date "2022.07.19"]
[Round "3.7"]
[White "Kucharski, Bartlomiej"]
[Black "Babiarz, Arkadiusz"]
[Result "0-1"]
[ECO "B40"]
[WhiteElo "2003"]
[BlackElo "2027"]
[Annotator "TA"]
[PlyCount "130"]
[EventDate "2022.07.17"]
[EventCountry "POL"]
[SourceTitle "playchess.com"]
[Source "ChessBase"]
[SourceQuality "1"]
[TimeControl "5400+30"]

{[%evp 15,130,0,0,0,0,0,0,0,0,0,0,0,0,0,0,0,0,0,0,-1,0,-46,-40,-41,-45,-84,-89,-89,-84,-89,-90,-102,-100,-184,-79,-110,-91,-104,-89,-93,-94,-87,-68,-83,-51,-84,-68,-72,-43,-66,-40,-42,-33,-62,-61,-54,-49,-63,-67,-70,-69,-125,-11,-54,-58,-69,-68,-69,-69,-69,-69,-70,0,-129,-106,-129,-121,-277,0,0,0,0,0,-170,-181,-724,-720,-1070,-610,-29964,-29966,-29964,-29967,-29970,-29972,-29970,-29971,-29975,-29976,-29976,-29977,-29977,-29978,-29980,-29980,-29982,-29983,-29988,-29989,-29990,-29988,-29989,-29985,-29989,-29989,-29990,-29991]} 1. e4 {[%emt 0:00:05]} c5 {[%emt 0:00:05]} 2. Nf3 {[%emt 0:00:10]} e6 {[%emt 0:00:04]} 3. d3 {[%emt 0:00:09]} Nc6 {[%emt 0:02:26]} 4. g3 {[%emt 0:00:15]} d6 {[%emt 0:01:34]} 5. Bg2 {[%emt 0:00:37]} Nf6 {[%emt 0:00:20]} 6. O-O {[%emt 0:01:12]} Be7 {[%emt 0:00:15]} 7. c3 {[%emt 0:06:26]} O-O {[%emt 0:00:28]} 8. Qe2 {[%emt 0:01:03]} e5 {[%emt 0:00:17]} 9. Na3 {[%emt 0:05:17] C00: French: Unusual White 2nd moves.} h6 {[%emt 0:15:00]} 10. Nc2 {[%emt 0:02:45]} Be6 {[%emt 0:02:10] [#]} 11. d4 $146 {[%emt 0:07:52] The position is equal.} ({Predecessor:} 11. Ne3 Re8 12. Nh4 d5 13. Nhf5 d4 14. Nd5 Nxd5 15. exd5 Bxd5 16. Qg4 g6 17. Nxh6+ Kg7 18. Nf5+ Kg8 19. Bxd5 Qxd5 20. c4 Qd8 21. Nh6+ {½-½ (21) Neborak,Y (2332)-Cintins,I (2301) ICCF email 2013}) 11... exd4 {[%emt 0:00:37]} 12. cxd4 {[%emt 0:00:24]} d5 {[%emt 0:00:25]} 13. e5 {[%emt 0:11:00]} Ne4 {[%emt 0:00:21]} 14. dxc5 {[%emt 0:00:22]} Bxc5 {[%emt 0:02:53]} 15. Be3 {[%emt 0:01:40]} Qb6 {[%emt 0:08:19]} 16. Bxc5 {[%emt 0:05:29]} Qxc5 {[%emt 0:00:08]} 17. Rfd1 {[%emt 0:02:21]} Rfe8 {[%emt 0:21:03]} 18. Ne3 {[%emt 0:18:43]} (18. Nfd4 $11) 18... Rad8 $15 {[%emt 0:00:52]} 19. Rac1 {[%emt 0:01:49]} Qb6 {[%emt 0:03:16]} 20. b3 {[%emt 0:03:39]} d4 {[%emt 0:11:54]} 21. Nc4 {[%emt 0:18:34]} Bxc4 {[%emt 0:00:02] Black is more active.} 22. Qxe4 {[%emt 0:00:07]} Bd5 {[%emt 0:00:05]} 23. Qf5 {[%emt 0:01:34]} Bxf3 {[%emt 0:00:22]} 24. Bxf3 {[%emt 0:00:08]} (24. Qxf3 $17 Rxe5 25. Qd3) 24... Rxe5 {[%emt 0:00:57]} (24... Nxe5 $19 {is more deadly.} 25. Be4 g6) 25. Qf4 {[%emt 0:00:52][%cal Oc1c6] [#] aiming for Rxc6!} Re6 {[%emt 0:02:29]} 26. Rd2 {[%emt 0:02:17]} Rf6 {[%emt 0:02:01]} 27. Qe4 {[%emt 0:00:37]} Rfd6 {[%emt 0:06:47][%cal Bf6d6,Bd6d7,Bd7e7,Be7e5][%mdl 32]} 28. Rcd1 {[%emt 0:00:40]} Qa5 {[%emt 0:00:40]} 29. h4 {[%emt 0:00:39]} R6d7 {[%emt 0:03:19]} 30. Bg4 {[%emt 0:02:33]} Re7 {[%emt 0:00:35]} 31. Qf4 {[%emt 0:00:11]} Re5 {[%emt 0:04:45]} 32. Bh3 {[%emt 0:01:12]} Qc5 {[%emt 0:05:45]} 33. Bg2 {[%emt 0:01:47]} Rde8 {[%emt 0:02:30]} (33... g5 {feels hotter.} 34. Qg4 Kg7 35. hxg5 hxg5 36. Qh5 Qd6) 34. b4 {[%emt 0:04:08]} Qxb4 {[%emt 0:02:06]} 35. Bxc6 {[%emt 0:00:09]} bxc6 {[%emt 0:00:05]} 36. Rxd4 {[%emt 0:00:36]} Qa5 {[%emt 0:01:25]} 37. Rd7 {[%emt 0:00:47]} Qxa2 {[%emt 0:01:04]} 38. R1d2 {[%emt 0:00:43]} ({Better is} 38. Kg2 $15) 38... Qa1+ {[%emt 0:01:28]} (38... Qe6 $17 {White must now prevent ...Rf5.} 39. R2d6 Qf5 40. Qxf5 Rxf5) 39. Kg2 {[%emt 0:00:25]} (39. Rd1 $5 {[%cal Rf4f7]} Qa2 40. R1d2 Qb1+ 41. Kg2 $17) 39... R5e7 {[%emt 0:00:28]} 40. Rxe7 {[%emt 0:00:00]} Rxe7 {[%emt 0:00:00][%mdl 4096] Endgame KQR-KQR} 41. Qf5 {[%emt 0:00:00] Against Qa5. White threatens Rd8+ and mate.} g6 {[%emt 0:00:00]} 42. Qc8+ {[%emt 0:00:00]} Kg7 {[%emt 0:00:00]} 43. Qxc6 {[%emt 0:00:00]} Re1 {[%emt 0:00:00]} (43... a5 $15) 44. Kh2 {[%emt 0:00:00]} (44. Rd7 $1 $11 {remains equal.}) 44... Re6 {[%emt 0:00:00]} 45. Qb7 {[%emt 0:00:00]} a5 $36 {[%emt 0:00:00][%mdl 2048] Keeping White busy.} 46. h5 $2 {[%emt 0:00:00]} (46. Qb3 $17 {keeps fighting.}) 46... Qf6 $2 {[%emt 0:00:00]} ({And not} 46... gxh5 47. Qf3 $17) (46... Re5 $19 47. Rd5 Rxh5+ 48. Rxh5 gxh5) 47. hxg6 $11 {[%emt 0:00:00]} Qxg6 {[%emt 0:00:00]} 48. Qb5 {[%emt 0:00:12] Inhibits Qf5.} Qg5 {[%emt 0:02:22]} 49. Qxg5+ {[%emt 0:04:14] Black converts the advantage convincingly.} (49. Rd5 $11 {and White has nothing to worry.} Qf6 50. Kg2) 49... hxg5 {[%emt 0:00:06] KR-KR} 50. Rd5 $2 {[%emt 0:00:02] [#]} (50. Rd4) 50... Ra6 $1 $19 {[%emt 0:00:06] Strongly threatening ...a4.} ({Not} 50... a4 51. Rxg5+ Kh6 52. Ra5 $11) 51. Rxg5+ {[%emt 0:00:04]} Kf6 {[%emt 0:00:04]} 52. Rb5 {[%emt 0:00:50]} a4 {[%emt 0:00:09][%cal Ba5a4,Ba4a3,Ba3a2][%mdl 32] Black mates.} 53. Rb1 {[%emt 0:01:33]} a3 {[%emt 0:00:17]} 54. Kh3 {[%emt 0:00:15]} a2 {[%emt 0:00:27]} 55. Ra1 {[%emt 0:00:03]} Ke5 {[%emt 0:00:06]} 56. f4+ {[%emt 0:00:32]} Kd4 {[%emt 0:00:05]} 57. Kh4 {[%emt 0:00:35]} Kc3 {[%emt 0:00:09]} 58. g4 {[%emt 0:01:01]} Kb2 {[%emt 0:00:05]} 59. Rxa2+ {[%emt 0:00:06]} Rxa2 {[%emt 0:00:37] KR-KPP} 60. f5 {[%emt 0:01:09]} Kc3 {[%emt 0:00:08]} 61. f6 {[%emt 0:00:29]} Kd4 {[%emt 0:00:21]} 62. Kh5 {[%emt 0:00:31]} Rh2+ {[%emt 0:00:08]} 63. Kg5 {[%emt 0:00:06]} Kd5 {[%emt 0:00:14]} 64. Kf5 {[%emt 0:00:10]} Rf2+ {[%emt 0:00:05]} 65. Kg5 {[%emt 0:00:04]} Ke5 {[%emt 0:00:04] Weighted Error Value: White=0.44/Black=0.23 (precise)} 0-1

[Event "2nd Bieszczady Chess-ch A 2022"]
[Site "Bystre"]
[Date "2022.07.19"]
[Round "3.8"]
[White "Kopacz, Lukasz"]
[Black "Palacki, Rafal"]
[Result "1/2-1/2"]
[ECO "A20"]
[WhiteElo "1821"]
[BlackElo "1832"]
[Annotator "NA RC COMBH"]
[PlyCount "120"]
[EventDate "2022.07.17"]
[EventCountry "POL"]
[SourceTitle "playchess.com"]
[Source "ChessBase"]
[SourceQuality "1"]
[TimeControl "5400+30"]

1. c4 {[%emt 0:00:30]} e5 {[%emt 0:00:30]} 2. g3 {[%emt 0:00:00]} Nf6 {[%emt 0:00:00]} 3. Bg2 {[%emt 0:00:00]} Bc5 {[%emt 0:00:50]} 4. Nc3 {[%emt 0:04:04]} O-O {[%emt 0:02:01]} 5. d3 {[%emt 0:08:24]} a6 {[%emt 0:00:59]} 6. e3 {[%emt 0:00:06]} c6 {[%emt 0:01:37]} 7. Nge2 {[%emt 0:12:11]} d5 {[%emt 0:01:37]} 8. O-O {[%emt 0:00:08]} Be6 {[%emt 0:01:04]} 9. b3 {[%emt 0:00:34]} Nbd7 {[%emt 0:00:51]} 10. Bb2 {[%emt 0:00:29]} Re8 {[%emt 0:01:20]} 11. e4 {[%emt 0:01:02]} dxc4 {[%emt 0:03:59]} 12. dxc4 {[%emt 0:00:16]} h5 {[%emt 0:02:29]} 13. h3 {[%emt 0:12:01]} Ba7 {[%emt 0:10:16]} 14. Qc2 {[%emt 0:04:40]} Nf8 {[%emt 0:02:59]} 15. Rad1 {[%emt 0:01:15]} Qc8 {[%emt 0:01:51]} 16. Kh2 {[%emt 0:00:17]} h4 {[%emt 0:00:44]} 17. Bc1 {[%emt 0:04:59]} hxg3+ {[%emt 0:09:32]} 18. fxg3 {[%emt 0:02:03]} N8h7 {[%emt 0:04:37]} 19. Ng1 {[%emt 0:01:20]} Qc7 {[%emt 0:04:01]} 20. Nf3 {[%emt 0:01:49]} Rad8 {[%emt 0:01:00]} 21. Ng5 {[%emt 0:01:02]} Nxg5 {[%emt 0:00:38]} 22. Bxg5 {[%emt 0:00:48]} Rxd1 {[%emt 0:00:09]} 23. Rxd1 {[%emt 0:00:34]} Nd7 {[%emt 0:00:41]} 24. Ne2 {[%emt 0:03:45]} f6 {[%emt 0:00:47]} 25. Bc1 {[%emt 0:00:16]} Rd8 {[%emt 0:00:19]} 26. Ba3 {[%emt 0:04:30]} Nf8 {[%emt 0:02:48]} 27. Nc1 {[%emt 0:07:31]} Rxd1 {[%emt 0:03:07]} 28. Qxd1 {[%emt 0:00:05]} Bd4 {[%emt 0:00:21]} 29. Bxf8 {[%emt 0:02:05]} Kxf8 {[%emt 0:00:08]} 30. Ne2 {[%emt 0:00:27]} c5 {[%emt 0:00:19]} 31. Qd3 {[%emt 0:11:03]} Qd7 {[%emt 0:00:44]} 32. Nxd4 {[%emt 0:01:12]} exd4 {[%emt 0:00:49]} 33. g4 {[%emt 0:00:45]} b5 {[%emt 0:01:18]} 34. Bf1 {[%emt 0:03:01]} bxc4 {[%emt 0:01:17]} 35. bxc4 {[%emt 0:00:05]} Qc7+ {[%emt 0:02:08]} 36. Qg3 {[%emt 0:00:57]} Qxg3+ {[%emt 0:04:36]} 37. Kxg3 {[%emt 0:00:04]} g5 {[%emt 0:00:05]} 38. h4 {[%emt 0:04:51]} gxh4+ {[%emt 0:00:02]} 39. Kxh4 {[%emt 0:00:06]} Kg7 {[%emt 0:00:13]} 40. Kg3 {[%emt 0:00:00]} Kf7 {[%emt 0:04:19]} 41. Kf4 {[%emt 0:00:00]} Ke7 {[%emt 0:01:22]} 42. e5 {[%emt 0:00:00]} fxe5+ {[%emt 0:02:30]} 43. Kxe5 {[%emt 0:00:00]} Bxg4 {[%emt 0:00:03]} 44. Kd5 {[%emt 0:00:00]} Bf5 {[%emt 0:00:02]} 45. Kxc5 {[%emt 0:00:00]} d3 {[%emt 0:00:04]} 46. Kb6 {[%emt 0:00:00]} d2 {[%emt 0:00:41]} 47. Be2 {[%emt 0:00:00]} Bd3 {[%emt 0:00:01]} 48. Bd1 {[%emt 0:00:00]} Bxc4 {[%emt 0:00:04]} 49. Kc5 {[%emt 0:00:00]} Bxa2 {[%emt 0:00:08]} 50. Kb4 {[%emt 0:00:01]} Kd6 {[%emt 0:00:05]} 51. Kc3 {[%emt 0:00:11]} Kc5 {[%emt 0:00:07]} 52. Kxd2 {[%emt 0:00:13]} Kb4 {[%emt 0:00:06]} 53. Kc1 {[%emt 0:01:32]} Kc3 {[%emt 0:00:03]} 54. Ba4 {[%emt 0:00:30]} a5 {[%emt 0:00:04]} 55. Bd1 {[%emt 0:00:35]} Bb3 {[%emt 0:00:11]} 56. Bxb3 {[%emt 0:00:26]} Kxb3 {[%emt 0:00:03]} 57. Kb1 {[%emt 0:00:04]} a4 {[%emt 0:00:04]} 58. Ka1 {[%emt 0:00:11]} a3 {[%emt 0:00:03]} 59. Kb1 {[%emt 0:00:06]} a2+ {[%emt 0:00:03]} 60. Ka1 {[%emt 0:00:05]} Ka3 1/2-1/2

[Event "2nd Bieszczady Chess-ch A 2022"]
[Site "Bystre"]
[Date "2022.07.19"]
[Round "3.9"]
[White "Maksimenko, Andrei Jr"]
[Black "Janzer, Hubert"]
[Result "1-0"]
[ECO "C11"]
[WhiteElo "1897"]
[BlackElo "1839"]
[Annotator "NA RC COMBH"]
[PlyCount "109"]
[EventDate "2022.07.17"]
[EventCountry "POL"]
[SourceTitle "playchess.com"]
[Source "ChessBase"]
[SourceQuality "1"]
[TimeControl "5400+30"]

1. e4 e6 2. Nf3 d5 3. Nc3 Nf6 4. e5 Nfd7 5. d4 a6 6. Bd3 c5 7. dxc5 Bxc5 8. Qe2 Nc6 9. Bf4 Be7 10. h4 f6 11. exf6 Nxf6 12. Ng5 Nd4 13. Qd1 O-O 14. Be5 Nf5 15. Bxf5 exf5 16. Qd4 h6 17. Nf3 Be6 18. O-O-O Rc8 19. Qd3 Qa5 20. Nd4 Bd7 21. Nb3 Qb6 22. Bxf6 Bxf6 23. Nxd5 Qc6 24. Nxf6+ Rxf6 25. Kb1 Be6 26. Nd4 Qd5 27. Nxe6 Qxd3 28. Rxd3 Rxe6 29. Rhd1 Re2 30. R3d2 Re4 31. g3 f4 32. c3 fxg3 33. fxg3 Rc6 34. Rd6 Rxd6 35. Rxd6 Re3 36. Rg6 Kf7 37. Rb6 Rxg3 38. Rxb7+ Kg8 39. a4 Rg4 40. a5 Rxh4 41. Kc2 Rf4 42. Kd3 h5 43. Ke3 Rf5 44. b4 h4 45. Rd7 h3 46. c4 Rh5 47. Rd1 Rh4 48. b5 Rxc4 49. bxa6 Rc7 50. Kf2 Kf7 51. Rb1 Rc5 52. Rb7+ Kf6 53. Rb6+ Kf5 54. a7 Rxa5 55. Rb5+ 1-0

[Event "2nd Bieszczady Chess-ch A 2022"]
[Site "Bystre"]
[Date "2022.07.20"]
[Round "4.1"]
[White "Razin, Vadim"]
[Black "Marszalek, Maciej"]
[Result "1/2-1/2"]
[ECO "A77"]
[WhiteElo "2428"]
[BlackElo "2268"]
[Annotator "TA"]
[PlyCount "62"]
[EventDate "2022.07.17"]
[EventCountry "POL"]
[SourceTitle "playchess.com"]
[Source "ChessBase"]
[SourceQuality "1"]
[TimeControl "5400+30"]

{[%evp 20,62,58,30,11,0,-24,0,-4,-43,-43,-67,-58,-78,-72,-69,-82,-107,-114,-151,-116,-208,-135,-153,-127,-189,-68,-67,-73,-65,-43,-47,-3,-53,0,-81,-54,-74,-8,-74,0,-81,0,-66,0]} 1. d4 {[%emt 0:00:02]} Nf6 {[%emt 0:00:17]} 2. Nf3 {[%emt 0:00:26]} e6 {[%emt 0:00:05]} 3. c4 {[%emt 0:00:16]} c5 {[%emt 0:00:06]} 4. d5 {[%emt 0:00:11]} exd5 {[%emt 0:00:06]} 5. cxd5 {[%emt 0:00:04]} d6 {[%emt 0:00:05]} 6. Nc3 {[%emt 0:00:07]} g6 {[%emt 0:00:06]} 7. e4 {[%emt 0:00:09]} Bg7 {[%emt 0:00:45]} 8. Be2 {[%emt 0:00:07]} O-O {[%emt 0:00:26]} 9. Nd2 {[%emt 0:00:19]} Re8 {[%emt 0:01:44]} 10. O-O {[%emt 0:00:08]} Nbd7 {[%emt 0:00:16]} 11. Qc2 {[%emt 0:00:17]} Nb6 {[%emt 0:03:49][%cal Of6d5] A77: Modern Benoni: Classical: 9...Re8 10 Nd2: 10...a6 and 10...Nbd7.} 12. a4 {[%emt 0:14:25]} Nfxd5 $1 {[%emt 0:09:25]} 13. exd5 {[%emt 0:00:43] And now Bd3 would win.} Bxc3 {[%emt 0:00:04][%mdl 64] [#] Remove Defender. The position is equal.} 14. bxc3 $146 {[%emt 0:39:49] Threatens to win with Ne4.} (14. Bb5 Bxd2 15. Qxd2 Bd7 16. Bxd7 Nxd7 $17) ({Predecessor:} 14. Qxc3 Rxe2 15. Nf3 Bf5 16. Bh6 f6 17. a5 Rc2 18. Qb3 Nd7 19. Rfe1 g5 20. Re6 {0-1 (33) Kopylov,M (2472)-Huschenbeth,N (2318) Hamburg 2007}) 14... Rxe2 {[%emt 0:00:05]} 15. c4 {[%emt 0:03:16]} Bf5 {[%emt 0:20:34]} 16. Qc3 {[%emt 0:07:19]} Qe7 {[%emt 0:01:36]} ({Of course not} 16... f6 $6 17. Qf3 Rxd2 18. Bxd2 $11) 17. a5 {[%emt 0:14:38]} Nd7 {[%emt 0:01:51]} 18. Bb2 {[%emt 0:02:47][%csl Gb2][%cal Rc3g7] [#]} f6 $1 {[%emt 0:05:31]} 19. Rfd1 {[%emt 0:02:40]} Re8 {[%emt 0:01:41]} 20. h3 {[%emt 0:03:01]} (20. Nf1 $17 Rc2 21. Re1 Qxe1 22. Rxe1 Rxc3 23. Rxe8+ Kf7 24. Bxc3 Kxe8 25. Ne3) 20... g5 {[%emt 0:02:31]} 21. Rac1 {[%emt 0:00:55][%cal Ba1c1,Bc1e1,Be1e3][%mdl 32]} Ne5 {[%emt 0:06:15] ...Nd3 is the strong threat.} 22. Re1 {[%emt 0:01:38]} (22. Nf1 $17 {was worth a try.} Nd3 23. Ng3 Rxf2 24. Qxf6 Nxb2 25. Qxe7 Rxe7 26. Kxf2 Nxd1+ 27. Rxd1) 22... Rxe1+ {[%emt 0:08:41]} (22... Nd3 $19 23. Rxe2 Qxe2 24. Qxf6 Qxf2+ 25. Kh2 Qf4+ 26. Kh1 Nxb2) 23. Rxe1 $15 {[%emt 0:00:04]} Qf7 {[%emt 0:04:17]} 24. Re3 {[%emt 0:02:00]} Bg6 {[%emt 0:04:34]} 25. Nf3 {[%emt 0:02:03]} Qd7 {[%emt 0:03:21]} 26. Qb3 {[%emt 0:00:51]} (26. Nxe5 $11 fxe5 27. Rg3) 26... Re7 {[%emt 0:01:18]} ({Black should try} 26... h6 $15) 27. Nd2 {[%emt 0:02:48]} (27. Bxe5 $11 dxe5 28. Nd2) 27... Kf7 {[%emt 0:01:54]} 28. Nf1 {[%emt 0:01:26]} Qc7 {[%emt 0:02:05]} (28... h6 $17) 29. Qc3 {[%emt 0:00:29]} (29. Bxe5 $11 Rxe5 30. Rxe5 fxe5 31. Qf3+ Ke8 32. Qg4) 29... Qd7 {[%emt 0:00:53]} 30. Qb3 $1 {[%emt 0:00:17] Against Qa4} Qc7 {[%emt 0:04:52]} 31. Qc3 {[%emt 0:01:26]} Qd7 {[%emt 0:00:55] Weighted Error Value: White=0.32/Black=0.34} ({Better is} 31... Kf8 $15) 1/2-1/2